fUST/lending_fUST_20260531
["ID","MTS","AMOUNT","RATE_DAILY","PERIOD"]
[423558809,1780223449000,-1784.66,0.00010958,2]
[423558794,1780223449000,-657.44,0.00010958,2]
[423558854,1780223449000,-954.48,0.00011232,2]
[423558798,1780223449000,-500.0,0.00010958,2]
[423558846,1780223449000,-604.29,0.00011232,2]
[423558884,1780223449000,-151.0,0.000115,2]
[423558883,1780223449000,-151.0,0.000114,2]
[423558892,1780223449000,-500.0,0.00011506,2]
[423558887,1780223449000,-153.68930375,0.00011506,2]
[423558885,1780223449000,-151.0,0.000115,2]
[423558886,1780223449000,-151.0,0.000115,2]
[423558888,1780223449000,-500.0,0.00011506,2]
[423558890,1780223449000,-500.0,0.00011506,2]
[423558889,1780223449000,-154.92150586,0.00011506,2]
[423558893,1780223449000,-702.12,0.00011506,2]
[423558895,1780223449000,-623.91,0.00011506,2]
[423558894,1780223449000,-1140.1,0.00011506,2]
[423558896,1780223449000,-500.0,0.00011506,2]
[423558901,1780223449000,-500.0,0.00011506,2]
[423558900,1780223449000,-2199.08,0.00011506,2]
[423558897,1780223449000,-168.63677832,0.00011506,2]
[423558899,1780223449000,-604.29,0.00011506,2]
[423558898,1780223449000,-657.44,0.00011506,2]
[423558902,1780223449000,-500.0,0.00011506,2]
[423558904,1780223449000,-515.67,0.00011506,2]
[423558906,1780223449000,-954.48,0.00011506,2]
[423558905,1780223449000,-1773.36,0.00011506,2]
[423558903,1780223449000,-2356.06,0.00011506,2]
[423558909,1780223449000,-529.29,0.00011506,2]
[423558910,1780223449000,-7694.48,0.00011506,2]
[423558912,1780223449000,-500.0,0.00011506,2]
[423558911,1780223449000,-1784.66,0.00011506,2]
[423558908,1780223449000,-519.76,0.00011506,2]
[423558845,1780223449000,-657.44,0.00011232,2]
[423558880,1780223449000,-151.0,0.000114,2]
[423558882,1780223449000,-151.0,0.000114,2]
[423558907,1780223449000,-1562.73,0.00011506,2]
[423558881,1780223449000,-151.0,0.000114,2]
[423558891,1780223449000,-500.0,0.00011506,2]
[423558853,1780223449000,-1773.36,0.00011232,2]
[423558848,1780223449000,-2199.08,0.00011232,2]
[423558849,1780223449000,-500.0,0.00011232,2]
[423558851,1780223449000,-2356.06,0.00011232,2]
[423558856,1780223449000,-519.76,0.00011232,2]
[423558866,1780223449000,-801.78,0.00011232,2]
[423558867,1780223449000,-1836.0,0.00011265,2]
[423558858,1780223449000,-7694.48,0.00011232,2]
[423558862,1780223449000,-500.0,0.00011232,2]
[423558855,1780223449000,-1562.73,0.00011232,2]
[423558857,1780223449000,-529.29,0.00011232,2]
[423558859,1780223449000,-1784.66,0.00011232,2]
[423558861,1780223449000,-388.76,0.00011232,2]
[423558863,1780223449000,-831.06,0.00011232,2]
[423558850,1780223449000,-500.0,0.00011232,2]
[423558860,1780223449000,-500.0,0.00011232,2]
[423558865,1780223449000,-506.81,0.00011232,2]
[423558874,1780223449000,-151.0,0.000113,2]
[423558878,1780223449000,-151.0,0.000113,2]
[423558875,1780223449000,-151.0,0.000113,2]
[423558879,1780223449000,-151.0,0.000114,2]
[423558871,1780223449000,-210.967,0.00011265,2]
[423558873,1780223449000,-244.0,0.00011296,2]
[423558877,1780223449000,-151.0,0.000113,2]
[423558864,1780223449000,-500.0,0.00011232,2]
[423558872,1780223449000,-1000.0,0.00011296,2]
[423558868,1780223449000,-2209.039,0.00011265,2]
[423558876,1780223449000,-151.0,0.000113,2]
[423558869,1780223449000,-3629.0,0.00011265,2]
[423558870,1780223449000,-446.585,0.00011265,2]
[423558961,1780223450000,-623.91,0.00012054,2]
[423558942,1780223450000,-519.76,0.0001178,2]
[423558947,1780223450000,-500.0,0.0001178,2]
[423558943,1780223450000,-529.29,0.0001178,2]
[423558950,1780223450000,-506.81,0.0001178,2]
[423558946,1780223450000,-500.0,0.0001178,2]
[423558949,1780223450000,-500.0,0.0001178,2]
[423558948,1780223450000,-831.06,0.0001178,2]
[423558952,1780223450000,-151.0,0.000118,2]
[423558955,1780223450000,-189.4949645,0.00011939,2]
[423558958,1780223450000,-500.0,0.00012054,2]
[423558944,1780223450000,-7694.48,0.0001178,2]
[423558945,1780223450000,-1784.66,0.0001178,2]
[423558963,1780223450000,-657.44,0.00012054,2]
[423558956,1780223450000,-151.0,0.00012,2]
[423558954,1780223450000,-179.24543092,0.00011939,2]
[423558960,1780223450000,-1140.1,0.00012054,2]
[423558957,1780223450000,-500.0,0.00012054,2]
[423558959,1780223450000,-702.12,0.00012054,2]
[423558964,1780223450000,-604.29,0.00012054,2]
[423558962,1780223450000,-500.0,0.00012054,2]
[423558966,1780223450000,-500.0,0.00012054,2]
[423558965,1780223450000,-2199.08,0.00012054,2]
[423558976,1780223450000,-1784.66,0.00012054,2]
[423558951,1780223450000,-801.78,0.0001178,2]
[423558967,1780223450000,-500.0,0.00012054,2]
[423558953,1780223450000,-151.0,0.000118,2]
[423558941,1780223450000,-1562.73,0.0001178,2]
[423558927,1780223450000,-564.17,0.0001178,2]
[423558937,1780223450000,-2356.06,0.0001178,2]
[423558968,1780223450000,-2356.06,0.00012054,2]
[423558917,1780223450000,-801.78,0.00011506,2]
[423558914,1780223450000,-831.06,0.00011506,2]
[423558913,1780223450000,-500.0,0.00011506,2]
[423558915,1780223450000,-500.0,0.00011506,2]
[423558918,1780223450000,-420.22,0.00011533,2]
[423558919,1780223450000,-420.22,0.00011533,2]
[423558916,1780223450000,-506.81,0.00011506,2]
[423558920,1780223450000,-420.22,0.00011533,2]
[423558921,1780223450000,-420.22,0.00011533,2]
[423558924,1780223450000,-421.05,0.0001178,2]
[423558923,1780223450000,-156.51531977,0.00011608,2]
[423558940,1780223450000,-954.48,0.0001178,2]
[423558922,1780223450000,-151.0,0.000116,2]
[423558925,1780223450000,-500.0,0.0001178,2]
[423558928,1780223450000,-702.12,0.0001178,2]
[423558932,1780223450000,-657.44,0.0001178,2]
[423558930,1780223450000,-623.91,0.0001178,2]
[423558931,1780223450000,-500.0,0.0001178,2]
[423558935,1780223450000,-500.0,0.0001178,2]
[423558934,1780223450000,-2199.08,0.0001178,2]
[423558939,1780223450000,-1773.36,0.0001178,2]
[423558933,1780223450000,-604.29,0.0001178,2]
[423558936,1780223450000,-500.0,0.0001178,2]
[423558929,1780223450000,-1140.1,0.0001178,2]
[423558938,1780223450000,-515.67,0.0001178,2]
[423558926,1780223450000,-500.0,0.0001178,2]
[423558969,1780223450000,-515.67,0.00012054,2]
[423558972,1780223450000,-1562.73,0.00012054,2]
[423559027,1780223450000,-500.0,0.00012602,2]
[423559007,1780223450000,-185.37,0.00012328,2]
[423559004,1780223450000,-529.29,0.00012328,2]
[423559005,1780223450000,-7694.48,0.00012328,2]
[423559008,1780223450000,-500.0,0.00012328,2]
[423559009,1780223450000,-831.06,0.00012328,2]
[423559006,1780223450000,-1784.66,0.00012328,2]
[423559010,1780223450000,-500.0,0.00012328,2]
[423559011,1780223450000,-801.78,0.00012328,2]
[423559012,1780223450000,-506.81,0.00012328,2]
[423559024,1780223450000,-702.12,0.00012602,2]
[423559014,1780223450000,-456.8688945,0.0001239,2]
[423559025,1780223450000,-1140.1,0.00012602,2]
[423559002,1780223450000,-1562.73,0.00012328,2]
[423559018,1780223450000,-1000.0,0.00012425,2]
[423559023,1780223450000,-500.0,0.00012602,2]
[423559020,1780223450000,-168.9561,0.00012598,2]
[423559019,1780223450000,-492.0,0.00012425,2]
[423559021,1780223450000,-151.0,0.000126,2]
[423559016,1780223450000,-326.00705,0.00012391,2]
[423559017,1780223450000,-151.0,0.000124,2]
[423559022,1780223450000,-500.0,0.00012602,2]
[423559026,1780223450000,-623.91,0.00012602,2]
[423559028,1780223450000,-657.44,0.00012602,2]
[423559029,1780223450000,-604.29,0.00012602,2]
[423559030,1780223450000,-2199.08,0.00012602,2]
[423558971,1780223450000,-954.48,0.00012054,2]
[423559015,1780223450000,-151.0,0.00012391,2]
[423559003,1780223450000,-519.76,0.00012328,2]
[423559013,1780223450000,-456.8688945,0.0001239,2]
[423558994,1780223450000,-604.29,0.00012328,2]
[423558970,1780223450000,-1773.36,0.00012054,2]
[423558999,1780223450000,-515.67,0.00012328,2]
[423558973,1780223450000,-519.76,0.00012054,2]
[423558974,1780223450000,-529.29,0.00012054,2]
[423558975,1780223450000,-7694.48,0.00012054,2]
[423558977,1780223450000,-500.0,0.00012054,2]
[423558978,1780223450000,-500.0,0.00012054,2]
[423558980,1780223450000,-500.0,0.00012054,2]
[423558981,1780223450000,-801.78,0.00012054,2]
[423558982,1780223450000,-506.81,0.00012054,2]
[423558983,1780223450000,-157.0,0.00012055,3]
[423558985,1780223450000,-151.0,0.000122,2]
[423558989,1780223450000,-702.12,0.00012328,2]
[423558987,1780223450000,-500.0,0.00012328,2]
[423558979,1780223450000,-831.06,0.00012054,2]
[423558988,1780223450000,-500.0,0.00012328,2]
[423558997,1780223450000,-604.9,0.00012328,2]
[423558992,1780223450000,-500.0,0.00012328,2]
[423558998,1780223450000,-2356.06,0.00012328,2]
[423558995,1780223450000,-2199.08,0.00012328,2]
[423558996,1780223450000,-500.0,0.00012328,2]
[423559000,1780223450000,-1773.36,0.00012328,2]
[423558993,1780223450000,-657.44,0.00012328,2]
[423559001,1780223450000,-954.48,0.00012328,2]
[423558991,1780223450000,-623.91,0.00012328,2]
[423558986,1780223450000,-151.0,0.000123,2]
[423558984,1780223450000,-151.0,0.000121,2]
[423558990,1780223450000,-1140.1,0.00012328,2]
[423559073,1780223451000,-500.0,0.0001315,2]
[423559084,1780223451000,-515.67,0.0001315,2]
[423559074,1780223451000,-702.12,0.0001315,2]
[423559064,1780223451000,-1784.66,0.00012876,2]
[423559066,1780223451000,-831.06,0.00012876,2]
[423559070,1780223451000,-151.0,0.00013,2]
[423559071,1780223451000,-300.0,0.000131,2]
[423559068,1780223451000,-801.78,0.00012876,2]
[423559072,1780223451000,-500.0,0.0001315,2]
[423559067,1780223451000,-346.5372115,0.00012876,2]
[423559062,1780223451000,-529.29,0.00012876,2]
[423559069,1780223451000,-506.81,0.00012876,2]
[423559065,1780223451000,-619.46399044,0.00012876,2]
[423559082,1780223451000,-2356.06,0.0001315,2]
[423559090,1780223451000,-1784.66,0.0001315,2]
[423559085,1780223451000,-954.48,0.0001315,2]
[423559083,1780223451000,-1773.36,0.0001315,2]
[423559077,1780223451000,-500.0,0.0001315,2]
[423559075,1780223451000,-1140.1,0.0001315,2]
[423559081,1780223451000,-500.0,0.0001315,2]
[423559076,1780223451000,-623.91,0.0001315,2]
[423559078,1780223451000,-657.44,0.0001315,2]
[423559080,1780223451000,-2199.08,0.0001315,2]
[423559086,1780223451000,-1562.73,0.0001315,2]
[423559088,1780223451000,-529.29,0.0001315,2]
[423559087,1780223451000,-519.76,0.0001315,2]
[423559091,1780223451000,-831.06,0.0001315,2]
[423559063,1780223451000,-7694.48,0.00012876,2]
[423559079,1780223451000,-604.29,0.0001315,2]
[423559061,1780223451000,-519.76,0.00012876,2]
[423559098,1780223451000,-319.044936,0.00013212,2]
[423559060,1780223451000,-1562.73,0.00012876,2]
[423559031,1780223451000,-500.0,0.00012602,2]
[423559036,1780223451000,-1562.73,0.00012602,2]
[423559038,1780223451000,-529.29,0.00012602,2]
[423559033,1780223451000,-515.67,0.00012602,2]
[423559032,1780223451000,-2356.06,0.00012602,2]
[423559034,1780223451000,-1773.36,0.00012602,2]
[423559037,1780223451000,-519.76,0.00012602,2]
[423559035,1780223451000,-954.48,0.00012602,2]
[423559040,1780223451000,-1784.66,0.00012602,2]
[423559050,1780223451000,-623.91,0.00012876,2]
[423559039,1780223451000,-7694.48,0.00012602,2]
[423559042,1780223451000,-831.06,0.00012602,2]
[423559051,1780223451000,-500.0,0.00012876,2]
[423559056,1780223451000,-2356.06,0.00012876,2]
[423559041,1780223451000,-500.0,0.00012602,2]
[423559044,1780223451000,-801.78,0.00012602,2]
[423559048,1780223451000,-702.12,0.00012876,2]
[423559045,1780223451000,-506.81,0.00012602,2]
[423559047,1780223451000,-500.0,0.00012876,2]
[423559046,1780223451000,-500.0,0.00012876,2]
[423559049,1780223451000,-1140.1,0.00012876,2]
[423559052,1780223451000,-657.44,0.00012876,2]
[423559059,1780223451000,-954.48,0.00012876,2]
[423559055,1780223451000,-500.0,0.00012876,2]
[423559054,1780223451000,-2199.08,0.00012876,2]
[423559053,1780223451000,-604.29,0.00012876,2]
[423559058,1780223451000,-1773.36,0.00012876,2]
[423559057,1780223451000,-515.67,0.00012876,2]
[423559043,1780223451000,-500.0,0.00012602,2]
[423559092,1780223451000,-801.78,0.0001315,2]
[423559154,1780223451000,-151.0,0.00013699,2]
[423559097,1780223451000,-225.8665217,0.00013212,2]
[423559126,1780223451000,-500.0,0.00013698,2]
[423559137,1780223451000,-604.29,0.00013698,2]
[423559128,1780223451000,-500.0,0.00013698,2]
[423559129,1780223451000,-500.0,0.00013698,2]
[423559130,1780223451000,-447.27077478,0.00013698,2]
[423559132,1780223451000,-500.0,0.00013698,2]
[423559136,1780223451000,-657.44,0.00013698,2]
[423559131,1780223451000,-702.12,0.00013698,2]
[423559135,1780223451000,-500.0,0.00013698,2]
[423559134,1780223451000,-623.91,0.00013698,2]
[423559133,1780223451000,-1140.1,0.00013698,2]
[423559138,1780223451000,-2199.08,0.00013698,2]
[423559139,1780223451000,-500.0,0.00013698,2]
[423559127,1780223451000,-500.0,0.00013698,2]
[423559141,1780223451000,-515.67,0.00013698,2]
[423559146,1780223451000,-529.29,0.00013698,2]
[423559151,1780223451000,-506.81,0.00013698,2]
[423559143,1780223451000,-954.48,0.00013698,2]
[423559150,1780223451000,-801.78,0.00013698,2]
[423559142,1780223451000,-1773.36,0.00013698,2]
[423559147,1780223451000,-7694.48,0.00013698,2]
[423559149,1780223451000,-831.06,0.00013698,2]
[423559145,1780223451000,-519.76,0.00013698,2]
[423559148,1780223451000,-1784.66,0.00013698,2]
[423559153,1780223451000,-151.0,0.00013699,2]
[423559155,1780223451000,-151.0,0.00013699,2]
[423559152,1780223451000,-151.0,0.00013699,2]
[423559089,1780223451000,-7694.48,0.0001315,2]
[423559144,1780223451000,-1562.73,0.00013698,2]
[423559122,1780223451000,-506.81,0.00013424,2]
[423559140,1780223451000,-2356.06,0.00013698,2]
[423559118,1780223451000,-7694.48,0.00013424,2]
[423559116,1780223451000,-519.76,0.00013424,2]
[423559094,1780223451000,-158.0,0.00013151,3]
[423559095,1780223451000,-1003.19,0.000132,2]
[423559096,1780223451000,-456.9255797,0.00013212,2]
[423559099,1780223451000,-326.1476792,0.00013212,2]
[423559101,1780223451000,-646.36999454,0.00013424,2]
[423559102,1780223451000,-500.0,0.00013424,2]
[423559100,1780223451000,-151.0,0.000134,2]
[423559110,1780223451000,-500.0,0.00013424,2]
[423559103,1780223451000,-702.12,0.00013424,2]
[423559106,1780223451000,-500.0,0.00013424,2]
[423559108,1780223451000,-604.29,0.00013424,2]
[423559104,1780223451000,-1140.1,0.00013424,2]
[423559111,1780223451000,-2356.06,0.00013424,2]
[423559093,1780223451000,-506.81,0.0001315,2]
[423559109,1780223451000,-2199.08,0.00013424,2]
[423559105,1780223451000,-623.91,0.00013424,2]
[423559117,1780223451000,-529.29,0.00013424,2]
[423559119,1780223451000,-1784.66,0.00013424,2]
[423559125,1780223451000,-591.78674156,0.00013698,2]
[423559113,1780223451000,-1773.36,0.00013424,2]
[423559120,1780223451000,-831.06,0.00013424,2]
[423559124,1780223451000,-791.0,0.00013668,2]
[423559114,1780223451000,-954.48,0.00013424,2]
[423559123,1780223451000,-1000.0,0.00013668,2]
[423559112,1780223451000,-515.67,0.00013424,2]
[423559115,1780223451000,-1562.73,0.00013424,2]
[423559107,1780223451000,-657.44,0.00013424,2]
[423559121,1780223451000,-801.78,0.00013424,2]
[423559194,1780223452000,-334.496,0.00013699,2]
[423559192,1780223452000,-334.496,0.00013699,2]
[423559197,1780223452000,-334.496,0.00013699,2]
[423559183,1780223452000,-211.87943829,0.00013699,2]
[423559193,1780223452000,-334.496,0.00013699,2]
[423559191,1780223452000,-334.496,0.00013699,2]
[423559196,1780223452000,-334.496,0.00013699,2]
[423559189,1780223452000,-334.496,0.00013699,2]
[423559190,1780223452000,-334.496,0.00013699,2]
[423559200,1780223452000,-334.496,0.00013699,2]
[423559199,1780223452000,-334.496,0.00013699,2]
[423559195,1780223452000,-334.496,0.00013699,2]
[423559198,1780223452000,-334.496,0.00013699,2]
[423559206,1780223452000,-471.43367099,0.00013699,2]
[423559201,1780223452000,-334.496,0.00013699,2]
[423559204,1780223452000,-151.0,0.00013699,2]
[423559203,1780223452000,-334.496,0.00013699,2]
[423559208,1780223452000,-178.36284914,0.00013721,2]
[423559213,1780223452000,-180.84634647,0.00013721,2]
[423559207,1780223452000,-173.14254778,0.00013721,2]
[423559212,1780223452000,-207.20789152,0.00013721,2]
[423559205,1780223452000,-1000.0,0.00013699,2]
[423559210,1780223452000,-161.75606746,0.00013721,2]
[423559209,1780223452000,-197.15297723,0.00013721,2]
[423559211,1780223452000,-169.72832646,0.00013721,2]
[423559215,1780223452000,-152.0,0.00013725,7]
[423559184,1780223452000,-334.496,0.00013699,2]
[423559202,1780223452000,-334.496,0.00013699,2]
[423559185,1780223452000,-334.496,0.00013699,2]
[423559163,1780223452000,-151.0,0.00013699,2]
[423559187,1780223452000,-334.496,0.00013699,2]
[423559214,1780223452000,-180.16137442,0.00013721,2]
[423559164,1780223452000,-211.879436,0.00013699,2]
[423559162,1780223452000,-151.0,0.00013699,2]
[423559156,1780223452000,-151.0,0.00013699,2]
[423559158,1780223452000,-151.0,0.00013699,2]
[423559159,1780223452000,-151.0,0.00013699,2]
[423559157,1780223452000,-151.0,0.00013699,2]
[423559160,1780223452000,-151.0,0.00013699,2]
[423559161,1780223452000,-151.0,0.00013699,2]
[423559165,1780223452000,-211.879436,0.00013699,2]
[423559166,1780223452000,-211.879436,0.00013699,2]
[423559168,1780223452000,-211.879436,0.00013699,2]
[423559171,1780223452000,-211.879436,0.00013699,2]
[423559186,1780223452000,-334.496,0.00013699,2]
[423559176,1780223452000,-211.879436,0.00013699,2]
[423559174,1780223452000,-211.879436,0.00013699,2]
[423559170,1780223452000,-211.879436,0.00013699,2]
[423559173,1780223452000,-211.879436,0.00013699,2]
[423559177,1780223452000,-211.879436,0.00013699,2]
[423559167,1780223452000,-211.879436,0.00013699,2]
[423559169,1780223452000,-211.879436,0.00013699,2]
[423559172,1780223452000,-211.879436,0.00013699,2]
[423559175,1780223452000,-211.879436,0.00013699,2]
[423559180,1780223452000,-211.879436,0.00013699,2]
[423559179,1780223452000,-211.879436,0.00013699,2]
[423559181,1780223452000,-211.879436,0.00013699,2]
[423559182,1780223452000,-211.879436,0.00013699,2]
[423559188,1780223452000,-334.496,0.00013699,2]
[423559178,1780223452000,-211.879436,0.00013699,2]
[423559216,1780223452000,-170.61570331,0.00013735,2]
[423559277,1780223452000,-651.0,0.00014177,2]
[423559217,1780223452000,-152.0,0.00013744,7]
[423559255,1780223452000,-519.76,0.00013972,2]
[423559253,1780223452000,-954.48,0.00013972,2]
[423559252,1780223452000,-1773.36,0.00013972,2]
[423559254,1780223452000,-1562.73,0.00013972,2]
[423559257,1780223452000,-7694.48,0.00013972,2]
[423559251,1780223452000,-515.67,0.00013972,2]
[423559256,1780223452000,-529.29,0.00013972,2]
[423559258,1780223452000,-1784.66,0.00013972,2]
[423559259,1780223452000,-831.06,0.00013972,2]
[423559262,1780223452000,-318.058049,0.0001407,2]
[423559261,1780223452000,-506.81,0.00013972,2]
[423559260,1780223452000,-801.78,0.00013972,2]
[423559263,1780223452000,-300.0,0.000141,2]
[423559265,1780223452000,-166.0,0.00014177,2]
[423559275,1780223452000,-651.0,0.00014177,2]
[423559264,1780223452000,-6790.95256179,0.00014165,2]
[423559266,1780223452000,-166.0,0.00014177,2]
[423559267,1780223452000,-166.0,0.00014177,2]
[423559268,1780223452000,-166.0,0.00014177,2]
[423559273,1780223452000,-156.12757092,0.00014177,2]
[423559270,1780223452000,-156.0,0.00014177,2]
[423559274,1780223452000,-651.0,0.00014177,2]
[423559272,1780223452000,-156.0,0.00014177,2]
[423559271,1780223452000,-156.0,0.00014177,2]
[423559276,1780223452000,-651.0,0.00014177,2]
[423559278,1780223452000,-651.0,0.00014177,2]
[423559225,1780223452000,-156.70418999,0.00013806,2]
[423559250,1780223452000,-2356.06,0.00013972,2]
[423559248,1780223452000,-2199.08,0.00013972,2]
[423559269,1780223452000,-166.0,0.00014177,2]
[423559246,1780223452000,-657.44,0.00013972,2]
[423559247,1780223452000,-604.29,0.00013972,2]
[423559220,1780223452000,-170.49628591,0.00013806,2]
[423559218,1780223452000,-151.0,0.000138,2]
[423559222,1780223452000,-574.45426827,0.00013806,2]
[423559219,1780223452000,-167.50288147,0.00013806,2]
[423559221,1780223452000,-370.44640104,0.00013806,2]
[423559224,1780223452000,-198.3732331,0.00013806,2]
[423559226,1780223452000,-156.53676102,0.00013806,2]
[423559227,1780223452000,-228.51629457,0.00013806,2]
[423559228,1780223452000,-907.84378988,0.00013806,2]
[423559229,1780223452000,-151.41758836,0.00013806,2]
[423559237,1780223452000,-184.76272748,0.00013806,2]
[423559230,1780223452000,-251.44641472,0.00013806,2]
[423559233,1780223452000,-164.57896995,0.00013806,2]
[423559223,1780223452000,-185.53535438,0.00013806,2]
[423559231,1780223452000,-150.34183609,0.00013806,2]
[423559244,1780223452000,-623.91,0.00013972,2]
[423559234,1780223452000,-170.7832131,0.00013806,2]
[423559245,1780223452000,-583.42922084,0.00013972,2]
[423559243,1780223452000,-1140.1,0.00013972,2]
[423559241,1780223452000,-500.0,0.00013972,2]
[423559240,1780223452000,-167.64,0.0001391,2]
[423559242,1780223452000,-702.12,0.00013972,2]
[423559249,1780223452000,-484.42585115,0.00013972,2]
[423559239,1780223452000,-202.56431671,0.00013806,2]
[423559236,1780223452000,-177.22245684,0.00013806,2]
[423559232,1780223452000,-173.97591482,0.00013806,2]
[423559235,1780223452000,-190.18978645,0.00013806,2]
[423559238,1780223452000,-154.50025753,0.00013806,2]
[423559304,1780223453000,-349305.47833258,0.0001425,2]
[423559317,1780223453000,-323.51213492,0.00014419,2]
[423559303,1780223453000,-159.0,0.00014247,3]
[423559302,1780223453000,-506.81,0.00014246,2]
[423559305,1780223453000,-41002.73160402,0.0001425,2]
[423559307,1780223453000,-3629.0,0.00014265,2]
[423559306,1780223453000,-2205.0,0.00014265,2]
[423559308,1780223453000,-1836.0,0.00014265,2]
[423559309,1780223453000,-444.0,0.00014265,2]
[423559314,1780223453000,-346.28509557,0.00014419,2]
[423559311,1780223453000,-258.247825,0.00014288,2]
[423559316,1780223453000,-394.30595446,0.00014419,2]
[423559315,1780223453000,-356.72569828,0.00014419,2]
[423559312,1780223453000,-24465.28703442,0.00014357,3]
[423559313,1780223453000,-1404.51139127,0.00014357,3]
[423559318,1780223453000,-339.45665292,0.00014419,2]
[423559300,1780223453000,-831.06,0.00014246,2]
[423559319,1780223453000,-232.83293814,0.00014419,2]
[423559310,1780223453000,-185.0,0.00014265,2]
[423559299,1780223453000,-1784.66,0.00014246,2]
[423559283,1780223453000,-185.492187,0.00014201,2]
[423559298,1780223453000,-7694.48,0.00014246,2]
[423559330,1780223453000,-396.74646619,0.00014507,2]
[423559285,1780223453000,-702.12,0.00014246,2]
[423559282,1780223453000,-151.0,0.000142,2]
[423559280,1780223453000,-651.0,0.00014177,2]
[423559286,1780223453000,-1140.1,0.00014246,2]
[423559279,1780223453000,-651.0,0.00014177,2]
[423559284,1780223453000,-302.66,0.00014246,2]
[423559281,1780223453000,-798.23201653,0.00014177,2]
[423559288,1780223453000,-657.44,0.00014246,2]
[423559287,1780223453000,-623.91,0.00014246,2]
[423559293,1780223453000,-1773.36,0.00014246,2]
[423559291,1780223453000,-2356.06,0.00014246,2]
[423559289,1780223453000,-604.29,0.00014246,2]
[423559294,1780223453000,-954.48,0.00014246,2]
[423559290,1780223453000,-2199.08,0.00014246,2]
[423559292,1780223453000,-515.67,0.00014246,2]
[423559296,1780223453000,-519.76,0.00014246,2]
[423559297,1780223453000,-529.29,0.00014246,2]
[423559295,1780223453000,-1562.73,0.00014246,2]
[423559301,1780223453000,-801.78,0.00014246,2]
[423559320,1780223453000,-225.84579659,0.00014419,2]
[423559328,1780223453000,-1148.90853653,0.00014507,2]
[423559324,1780223453000,-341.23140661,0.00014433,2]
[423559347,1780223453000,-702.35,0.0001452,2]
[423559349,1780223453000,-624.12526047,0.0001452,2]
[423559348,1780223453000,-1140.32709001,0.0001452,2]
[423559350,1780223453000,-657.51,0.0001452,2]
[423559351,1780223453000,-604.3,0.0001452,2]
[423559353,1780223453000,-2356.09775447,0.0001452,2]
[423559356,1780223453000,-954.49029711,0.0001452,2]
[423559354,1780223453000,-515.69361506,0.0001452,2]
[423559352,1780223453000,-2199.24692114,0.0001452,2]
[423559357,1780223453000,-1562.78,0.0001452,2]
[423559358,1780223453000,-519.97533023,0.0001452,2]
[423559361,1780223453000,-7369.85850313,0.0001452,2]
[423559359,1780223453000,-529.43,0.0001452,2]
[423559364,1780223453000,-801.9410741,0.0001452,2]
[423559362,1780223453000,-1784.86,0.0001452,2]
[423559360,1780223453000,-324.68523672,0.0001452,2]
[423559363,1780223453000,-831.09153598,0.0001452,2]
[423559365,1780223453000,-506.8645122,0.0001452,2]
[423559329,1780223453000,-371.07070877,0.00014507,2]
[423559346,1780223453000,-405.12863342,0.00014507,2]